Workbook

Sheet Inputs >>>

Sheet Inputs and Assumptions
A1: Inputs and Assumptions
A4: Inputs
A6: Meter Population (millions)
A7: Year | B7: 2019-20 | C7: 2020-21 | D7: 2021-22 | E7: 2022-23 | F7: 2023-24 | G7: 2024-25
A8: Energex Meters | B8: =B14/Million -> 1.969294 | C8: =B8*(1-'Inputs and Assumptions'!$B$52) -> 1.891471086 | D8: =C8*(1-'Inputs and Assumptions'!$B$52) -> 1.816723592 | E8: =D8*(1-'Inputs and Assumptions'!$B$52) -> 1.744929982 | F8: =E8*(1-'Inputs and Assumptions'!$B$52) -> 1.675973526 | G8: =F8*(1-'Inputs and Assumptions'!$B$52) -> 1.609742103
A9: Ergon Meters | B9: =B15/Million -> 0.972055 | C9: =B9*(1-'Inputs and Assumptions'!$B$53) -> 0.8956198515 | D9: =C9*(1-'Inputs and Assumptions'!$B$53) -> 0.8251949925 | E9: =D9*(1-'Inputs and Assumptions'!$B$53) -> 0.7603078187 | F9: =E9*(1-'Inputs and Assumptions'!$B$53) -> 0.7005228877 | G9: =F9*(1-'Inputs and Assumptions'!$B$53) -> 0.6454389975
A12: Meter Population
A13: Year | B13: 2019-20 | C13: 2020-21 | D13: 2021-22 | E13: 2022-23 | F13: 2023-24 | G13: 2024-25
A14: Energex Meters | B14: 1969294 | C14: =B14*(1-'Inputs and Assumptions'!$B$52) -> 1891471.086 | D14: =C14*(1-'Inputs and Assumptions'!$B$52) -> 1816723.592 | E14: =D14*(1-'Inputs and Assumptions'!$B$52) -> 1744929.982 | F14: =E14*(1-'Inputs and Assumptions'!$B$52) -> 1675973.526 | G14: =F14*(1-'Inputs and Assumptions'!$B$52) -> 1609742.103
A15: Ergon Meters | B15: 972055 | C15: =B15*(1-'Inputs and Assumptions'!$B$53) -> 895619.8515 | D15: =C15*(1-'Inputs and Assumptions'!$B$53) -> 825194.9925 | E15: =D15*(1-'Inputs and Assumptions'!$B$53) -> 760307.8187 | F15: =E15*(1-'Inputs and Assumptions'!$B$53) -> 700522.8877 | G15: =F15*(1-'Inputs and Assumptions'!$B$53) -> 645438.9975
A18: Network Tariff Code Population
A19: Year | B19: 2019-20 | C19: 2020-21 | D19: 2021-22 | E19: 2022-23 | F19: 2023-24 | G19: 2024-25
A20: Energex
A21: Primary | B21: 1361804 | C21: =B21*(1-$B$57) -> 1307987.985 | D21: 1256298.681 | E21: 1206652.044 | F21: 1158967.351 | G21: 1113167.071
A22: Load Control | B22: 678181 | C22: =B22*(1-$B$57) -> 651380.5214 | D22: 625639.1489 | E22: 600915.0286 | F22: 577167.9605 | G22: 554359.3334
A23: Solar PV | B23: 317796 | C23: =B23*(1-$B$57) -> 305237.2806 | D23: 293174.8589 | E23: 281589.1221 | F23: 270461.2326 | G23: 259773.097
A24: Ergon
A25: Primary | B25: 677268 | C25: =B25*(1-$B$58) -> 624012.7005 | D25: 574945.0002 | E25: 529735.6176 | F25: 488081.1632 | G25: 449702.1043
A26: Load Control | B26: 373240 | C26: =B26*(1-$B$58) -> 343891.1928 | D26: 316850.1566 | E26: 291935.4257 | F26: 268979.8032 | G26: 247829.2395
A27: Solar PV | B27: 117242 | C27: 108022.9644 | D27: 99528.84488 | E27: 91702.63954 | F27: 84491.82855 | G27: 77848.02192
A30: Customers by Tariff Code
A31: Year | B31: 2019-20 | C31: 2020-21 | D31: 2021-22 | E31: 2022-23 | F31: 2023-24 | G31: 2024-25
A32: Energex
A33: Primary (Non-capital) | B33: 1302988 | C33: =B33*(1-$B$62) -> 1251496.286 | D33: =C33*(1-$B$62) -> 1202039.431 | E33: =D33*(1-$B$62) -> 1154537.021 | F33: =E33*(1-$B$62) -> 1108911.819 | G33: =F33*(1-$B$62) -> 1065089.643
A34: Primary (Capital) | B34: 1266056 | C34: 1216023.772 | D34: 1167968.726 | E34: 1121812.728 | F34: 1077480.731 | G34: 1034900.654
A35: Load Control (Non-capital) | B35: 655894.3311 | C35: 629974.5811 | D35: 605079.1324 | E35: 581167.5065 | F35: 558200.8246 | G35: 536141.7441
A36: Load Control (Capital) | B36: 654731.0464 | C36: 628857.2673 | D36: 604005.9728 | E36: 580136.7563 | F36: 557210.8077 | G36: 535190.8509
A37: Solar PV (Non-capital) | B37: 301066.582 | C37: 289168.9787 | D37: 277741.5471 | E37: 266765.7067 | F37: 256223.6116 | G37: 246098.1209
A38: Solar PV (Capital) | B38: 286159.5351 | C38: 274851.0312 | D38: 263989.4188 | E38: 253557.0375 | F38: 243536.9249 | G38: 233912.789
A39: Ergon
A40: Primary (Non-capital) | B40: 652625 | C40: =B40*(1-$B$63) -> 601307.4421 | D40: 554025.1138 | E40: 510460.7148 | F40: 470321.895 | G40: 433339.2923
A41: Primary (Capital) | B41: 482668 | C41: =B41*(1-$B$63) -> 444714.5918 | D41: =C41*(1-$B$63) -> 409745.5562 | E41: =D41*(1-$B$63) -> 377526.2246 | F41: =E41*(1-$B$63) -> 347840.3806 | G41: =F41*(1-$B$63) -> 320488.8098
A42: Load Control (Non-capital) | B42: 360781 | C42: =B42*(1-$B$63) -> 332411.8755 | D42: 306273.4872 | E42: 282190.4266 | F42: 260001.0781 | G42: 239556.5343
A43: Load Control (Capital) | B43: 269218 | C43: =B43*(1-$B$63) -> 248048.7063 | D43: =C43*(1-$B$63) -> 228544.0078 | E43: =D43*(1-$B$63) -> 210573.0132 | F43: =E43*(1-$B$63) -> 194015.1234 | G43: =F43*(1-$B$63) -> 178759.2225
A44: Solar PV (Non-capital) | B44: 114849 | C44: 105818.132 | D44: 97497.38409 | E44: 89830.91766 | F44: 82767.28491 | G44: 76259.08351
A45: Solar PV (Capital) | B45: 75936 | C45: =B45*(1-$B$63) -> 69964.95985 | D45: =C45*(1-$B$63) -> 64463.43772 | E45: =D45*(1-$B$63) -> 59394.51422 | F45: =E45*(1-$B$63) -> 54724.17302 | G45: =F45*(1-$B$63) -> 50421.07259
A49: Assumptions
A51: Meter Decline Rate
A52: Energex Meter Decline Rate | B52: 0.03951817967 | C52: Source: Metering Opex model Dec 2019
A53: Ergon Meter Decline Rate | B53: 0.07863253466 | C53: Source: Metering Opex model Dec 2019 (Updated per rate supplied in the AER information request)
A56: NTC Decline Rate
A57: Energex NTC Decline Rate | B57: 0.03951817967
A58: Ergon NTC Decline Rate | B58: 0.07863253466
A61: Customer Decline Rate
A62: Energex Customer Decline Rate | B62: 0.03951817967
A63: Ergon Customer Decline Rate | B63: 0.07863253466
A66: Inflation
A67: Year | B67: 2017-18 | C67: 2018-19 | D67: 2019-20 | E67: 2020-21 | F67: 2021-22 | G67: 2022-23 | H67: 2023-24 | I67: 2024-25
A68: Inflation Assumption (CPI % increase) (constant) | E68: 0.0237 | F68: 0.0237 | G68: 0.0237 | H68: 0.0237 | I68: 0.0237
A69: Cumulative Inflation Index (CPI end period) | D69: 1 | E69: =D69*(1+E68) -> 1.0237 | F69: =E69*(1+F68) -> 1.04796169 | G69: 1.072798382 | H69: 1.098223704 | I69: 1.124251605
A72: WACC
A73: Year | B73: 2017-18 | C73: 2018-19 | D73: 2019-20 | E73: 2020-21 | F73: 2021-22 | G73: 2022-23 | H73: 2023-24 | I73: 2024-25
A74: Time Varying Nominal Vanilla WACC | E74: 0.0467341872 | F74: 0.04540626022 | G74: 0.04407833323 | H74: 0.04275040625 | I74: 0.04142247927
A76: Numbers
A77: Days per year | B77: 365.25
A78: Hundred | B78: 100
A79: Million | B79: =10^6 -> 1000000

Sheet Outputs >>>

Sheet (EGX&EGN) Building Blocks
A1: Building Block Components
A4: Energex | J4: Ergon
A6: Building Blocks ($m, nominal) | J6: Building Blocks ($m, nominal)
B7: 2020-21 | C7: 2021-22 | D7: 2022-23 | E7: 2023-24 | F7: 2024-25 | H7: Total | K7: 2020-21 | L7: 2021-22 | M7: 2022-23 | N7: 2023-24 | O7: 2024-25 | Q7: Total
A8: Return on Capital | B8: 14.84499177 | C8: 13.35797898 | D8: 11.89629322 | E8: 10.45065154 | F8: 9.016340591 | H8: =SUM(B8:F8) -> 59.56625609 | J8: Return on Capital | K8: 3.233768682 | L8: 2.940551195 | M8: 2.647779301 | N8: 2.355945256 | O8: 2.065744098 | Q8: =SUM(K8:O8) -> 13.24378853
A9: Return of Capital (regulatory depreciation) | B9: 23.45932622 | C9: 24.29823087 | D9: 25.4324534 | E9: 26.7895461 | F9: 28.19667984 | H9: =SUM(B9:F9) -> 128.1762364 | J9: Return of Capital (regulatory depreciation) | K9: 4.523101736 | L9: 4.777644778 | M9: 5.04433775 | N9: 5.320912329 | O9: 5.60771861 | Q9: =SUM(K9:O9) -> 25.2737152
A10: Operating Expenditure | B10: 22.33223962 | C10: 21.93664414 | D10: 21.55363879 | E10: 21.17998314 | F10: 20.78261762 | H10: 107.7851233 | J10: Operating Expenditure | K10: 39.6378768 | L10: 37.971452 | M10: 36.42956424 | N10: 35.00087876 | O10: 33.64021059 | Q10: 182.6799824
A11: Revenue Adjustments | B11: 0 | C11: 0 | D11: 0 | E11: 0 | F11: 0 | H11: 0 | J11: Revenue Adjustments | K11: 0 | L11: 0 | M11: 0 | N11: 0 | O11: 0 | Q11: 0
A12: Net Tax Allowance | B12: 1.501736594 | C12: 1.560183555 | D12: 1.658450075 | E12: 1.813921068 | F12: 2.025866697 | H12: 8.56015799 | J12: Net Tax Allowance | K12: 0.1073207918 | L12: 0.130825929 | M12: 0.1558375328 | N12: 0.1815931298 | O12: 0.2080455735 | Q12: 0.7836229569
A13: Annual Revenue Requirement (unsmoothed) | B13: =SUM(B8:B12) -> 62.1382942 | C13: =SUM(C8:C12) -> 61.15303755 | D13: 60.54083548 | E13: 60.23410184 | F13: 60.02150474 | H13: 304.0877738 | J13: Annual Revenue Requirement (unsmoothed) | K13: =SUM(K8:K12) -> 47.50206801 | L13: =SUM(L8:L12) -> 45.82047391 | M13: 44.27751883 | N13: 42.85932947 | O13: 41.52171887 | Q13: 221.9811091
A15: Unsmoothed Revenue Allocation ($m, nominal) | J15: Unsmoothed Revenue Allocation ($m, nominal)
B16: 2020-21 | C16: 2021-22 | D16: 2022-23 | E16: 2023-24 | F16: 2024-25 | H16: Total | K16: 2020-21 | L16: 2021-22 | M16: 2022-23 | N16: 2023-24 | O16: 2024-25 | Q16: Total
A17: Non-Capital Revenue (unsmoothed) | B17: =B10 -> 22.33223962 | C17: =C10 -> 21.93664414 | D17: 21.55363879 | E17: 21.17998314 | F17: 20.78261762 | H17: =SUM(B17:F17) -> 107.7851233 | J17: Non-Capital Revenue (unsmoothed) | K17: =K10 -> 39.6378768 | L17: =L10 -> 37.971452 | M17: 36.42956424 | N17: 35.00087876 | O17: 33.64021059 | Q17: =SUM(K17:O17) -> 182.6799824
A18: Capital Revenue (unsmoothed) | B18: =B8+B9+B12 -> 39.80605458 | C18: =C8+C9+C12 -> 39.2163934 | D18: 38.98719669 | E18: 39.0541187 | F18: 39.23888713 | H18: =SUM(B18:F18) -> 196.3026505 | J18: Capital Revenue (unsmoothed) | K18: =K8+K9+K12 -> 7.86419121 | L18: =L8+L9+L12 -> 7.849021902 | M18: 7.847954583 | N18: 7.858450715 | O18: 7.881508281 | Q18: =SUM(K18:O18) -> 39.30112669
A19: Annual Revenue Requirement (unsmoothed) | B19: =B17+B18 -> 62.1382942 | C19: =C17+C18 -> 61.15303755 | D19: 60.54083548 | E19: 60.23410184 | F19: 60.02150474 | H19: 304.0877738 | J19: Annual Revenue Requirement (unsmoothed) | K19: =K17+K18 -> 47.50206801 | L19: =L17+L18 -> 45.82047391 | M19: =M17+M18 -> 44.27751883 | N19: =N17+N18 -> 42.85932947 | O19: =O17+O18 -> 41.52171887 | Q19: 221.9811091
A21: Building Blocks ($m, real 2019-20) | J21: Building Blocks ($m, real 2019-20)
B22: 2020-21 | C22: 2021-22 | D22: 2022-23 | E22: 2023-24 | F22: 2024-25 | H22: Total | K22: 2020-21 | L22: 2021-22 | M22: 2022-23 | N22: 2023-24 | O22: 2024-25 | Q22: Total
A23: Return on Capital | B23: =B8/'Inputs and Assumptions'!$E$69 -> 14.5013107 | C23: =C8/'Inputs and Assumptions'!$F$69 -> 12.74662911 | D23: =D8/'Inputs and Assumptions'!$G$69 -> 11.08902979 | E23: =E8/'Inputs and Assumptions'!$H$69 -> 9.515958816 | F23: =F8/'Inputs and Assumptions'!$I$69 -> 8.019860098 | H23: =SUM(B23:F23) -> 55.87278852 | J23: Return on Capital | K23: =K8/'Inputs and Assumptions'!$E$69 -> 3.158902689 | L23: =L8/'Inputs and Assumptions'!$F$69 -> 2.805972034 | M23: =M8/'Inputs and Assumptions'!$G$69 -> 2.468105233 | N23: =N8/'Inputs and Assumptions'!$H$69 -> 2.145232568 | O23: =O8/'Inputs and Assumptions'!$I$69 -> 1.837439313 | Q23: =SUM(K23:O23) -> 12.41565184
A24: Return of Capital (regulatory depreciation) | B24: =B9/'Inputs and Assumptions'!$E$69 -> 22.91621199 | C24: =C9/'Inputs and Assumptions'!$F$69 -> 23.18618237 | D24: =D9/'Inputs and Assumptions'!$G$69 -> 23.70664779 | E24: =E9/'Inputs and Assumptions'!$H$69 -> 24.39352384 | F24: =F9/'Inputs and Assumptions'!$I$69 -> 25.08039989 | H24: =SUM(B24:F24) -> 119.2829659 | J24: Return of Capital (regulatory depreciation) | K24: =K9/'Inputs and Assumptions'!$E$69 -> 4.418385988 | L24: =L9/'Inputs and Assumptions'!$F$69 -> 4.558988008 | M24: =M9/'Inputs and Assumptions'!$G$69 -> 4.702037059 | N24: =N9/'Inputs and Assumptions'!$H$69 -> 4.845016831 | O24: =O9/'Inputs and Assumptions'!$I$69 -> 4.987956951 | Q24: =SUM(K24:O24) -> 23.51238484
A25: Operating Expenditure | B25: =B10/'Inputs and Assumptions'!$E$69 -> 21.81521893 | C25: =C10/'Inputs and Assumptions'!$F$69 -> 20.93267755 | D25: =D10/'Inputs and Assumptions'!$G$69 -> 20.09104335 | E25: =E10/'Inputs and Assumptions'!$H$69 -> 19.28567292 | F25: =F10/'Inputs and Assumptions'!$I$69 -> 18.48573532 | H25: 100.6103481 | J25: Operating Expenditure | K25: =K10/'Inputs and Assumptions'!$E$69 -> 38.72020788 | L25: =L10/'Inputs and Assumptions'!$F$69 -> 36.23362606 | M25: =M10/'Inputs and Assumptions'!$G$69 -> 33.95751229 | N25: =N10/'Inputs and Assumptions'!$H$69 -> 31.87044555 | O25: =O10/'Inputs and Assumptions'!$I$69 -> 29.92231492 | Q25: 170.7041067
A26: Revenue Adjustments | B26: =B11/'Inputs and Assumptions'!$E$69 -> 0 | C26: =C11/'Inputs and Assumptions'!$F$69 -> 0 | D26: =D11/'Inputs and Assumptions'!$G$69 -> 0 | E26: =E11/'Inputs and Assumptions'!$H$69 -> 0 | F26: =F11/'Inputs and Assumptions'!$I$69 -> 0 | H26: 0 | J26: Revenue Adjustments | K26: =K11/'Inputs and Assumptions'!$E$69 -> 0 | L26: =L11/'Inputs and Assumptions'!$F$69 -> 0 | M26: =M11/'Inputs and Assumptions'!$G$69 -> 0 | N26: =N11/'Inputs and Assumptions'!$H$69 -> 0 | O26: =O11/'Inputs and Assumptions'!$I$69 -> 0 | Q26: 0
A27: Net Tax Allowance | B27: =B12/'Inputs and Assumptions'!$E$69 -> 1.466969419 | C27: =C12/'Inputs and Assumptions'!$F$69 -> 1.488779189 | D27: =D12/'Inputs and Assumptions'!$G$69 -> 1.545910306 | E27: =E12/'Inputs and Assumptions'!$H$69 -> 1.651686321 | F27: =F12/'Inputs and Assumptions'!$I$69 -> 1.801969139 | H27: 7.955314373 | J27: Net Tax Allowance | K27: =K12/'Inputs and Assumptions'!$E$69 -> 0.1048361744 | L27: =L12/'Inputs and Assumptions'!$F$69 -> 0.1248384652 | M27: =M12/'Inputs and Assumptions'!$G$69 -> 0.1452626472 | N27: =N12/'Inputs and Assumptions'!$H$69 -> 0.1653516758 | O27: =O12/'Inputs and Assumptions'!$I$69 -> 0.1850525029 | Q27: 0.7253414655
A28: Annual Revenue Requirement (unsmoothed) | B28: =B13/'Inputs and Assumptions'!$E$69 -> 60.69971104 | C28: =C13/'Inputs and Assumptions'!$F$69 -> 58.35426822 | D28: =D13/'Inputs and Assumptions'!$G$69 -> 56.43263123 | E28: =E13/'Inputs and Assumptions'!$H$69 -> 54.84684189 | F28: =F13/'Inputs and Assumptions'!$I$69 -> 53.38796445 | H28: 283.7214168 | J28: Annual Revenue Requirement (unsmoothed) | K28: =K13/'Inputs and Assumptions'!$E$69 -> 46.40233273 | L28: =L13/'Inputs and Assumptions'!$F$69 -> 43.72342457 | M28: =M13/'Inputs and Assumptions'!$G$69 -> 41.27291723 | N28: =N13/'Inputs and Assumptions'!$H$69 -> 39.02604663 | O28: =O13/'Inputs and Assumptions'!$I$69 -> 36.93276368 | Q28: 207.3574848
A30: Unsmoothed Revenue Allocation ($m, real 2019-20) | J30: Unsmoothed Revenue Allocation ($m, real 2019-20)
B31: 2020-21 | C31: 2021-22 | D31: 2022-23 | E31: 2023-24 | F31: 2024-25 | H31: Total | K31: 2020-21 | L31: 2021-22 | M31: 2022-23 | N31: 2023-24 | O31: 2024-25 | Q31: Total
A32: Non-Capital Revenue (unsmoothed) | B32: =B25 -> 21.81521893 | C32: =C25 -> 20.93267755 | D32: 20.09104335 | E32: 19.28567292 | F32: 18.48573532 | H32: =SUM(B32:F32) -> 100.6103481 | J32: Non-Capital Revenue (unsmoothed) | K32: =K25 -> 38.72020788 | L32: =L25 -> 36.23362606 | M32: 33.95751229 | N32: 31.87044555 | O32: 29.92231492 | Q32: =SUM(K32:O32) -> 170.7041067
A33: Capital Revenue (unsmoothed) | B33: =B23+B24+B27 -> 38.88449212 | C33: =C23+C24+C27 -> 37.42159067 | D33: 36.34158789 | E33: 35.56116898 | F33: 34.90222912 | H33: =SUM(B33:F33) -> 183.1110688 | J33: Capital Revenue (unsmoothed) | K33: =K23+K24+K27 -> 7.682124851 | L33: =L23+L24+L27 -> 7.489798508 | M33: 7.315404939 | N33: 7.155601075 | O33: 7.010448767 | Q33: =SUM(K33:O33) -> 36.65337814
A34: Annual Revenue Requirement (unsmoothed) | B34: =B32+B33 -> 60.69971104 | C34: =C32+C33 -> 58.35426822 | D34: =D32+D33 -> 56.43263123 | E34: =E32+E33 -> 54.84684189 | F34: =F32+F33 -> 53.38796445 | H34: 283.7214168 | J34: Annual Revenue Requirement (unsmoothed) | K34: =K32+K33 -> 46.40233273 | L34: =L32+L33 -> 43.72342457 | M34: =M32+M33 -> 41.27291723 | N34: =N32+N33 -> 39.02604663 | O34: =O32+O33 -> 36.93276368 | Q34: 207.3574848

Sheet Energex Smoothed Charges
A1: Energex Smoothed Charges
F3: =IF(ROUND((Energex_Non_Capital_NPV_Difference+Energex_Capital_NPV_Difference),5)<>ROUND(0,5),"Charges not smoothed. Press button to smooth charges.", "Smoothing complete.") -> Smoothing complete.
A5: Smoothed Charges
A7: Primary ($, nominal) | H7: Primary (cents per day, nominal)
B8: 2020-21 | C8: 2021-22 | D8: 2022-23 | E8: 2023-24 | F8: 2024-25 | I8: 2020-21 | J8: 2021-22 | K8: 2022-23 | L8: 2023-24 | M8: 2024-25
A9: Non-capital | B9: =B67*Million/B39*(1-B34) -> 13.56952117 | C9: =B9*(1+C30)*(1-C34) -> 13.89111882 | D9: =C9*(1+D30)*(1-D34) -> 14.22033834 | E9: =D9*(1+E30)*(1-E34) -> 14.55736036 | F9: =E9*(1+F30)*(1-F34) -> 14.9023698 | H9: Non-capital | I9: =B9/DaysinYear*OneHundred -> 3.715132422 | J9: 3.80318106 | K9: 3.893316451 | L9: 3.985588051 | M9: 4.080046488
A10: Capital | B10: =B68*Million/B39*(1-B35) -> 25.39144386 | C10: =B10*(1+C30)*(1-C35) -> 25.99322108 | D10: =C10*(1+D30)*(1-D35) -> 26.60926042 | E10: =D10*(1+E30)*(1-E35) -> 27.23989989 | F10: =E10*(1+F30)*(1-F35) -> 27.88548552 | H10: Capital | I10: 6.951798456 | J10: 7.116556079 | K10: 7.285218459 | L10: 7.457878136 | M10: 7.634629848
A11: Total | B11: =B9+B10 -> 38.96096503 | C11: =C9+C10 -> 39.8843399 | D11: 40.82959876 | E11: 41.79726025 | F11: 42.78785532 | H11: Total | I11: =I9+I10 -> 10.66693088 | J11: =J9+J10 -> 10.91973714 | K11: =K9+K10 -> 11.17853491 | L11: =L9+L10 -> 11.44346619 | M11: =M9+M10 -> 11.71467634
A13: Load Control ($, nominal) | H13: Load Control (cents per day, nominal)
B14: 2020-21 | C14: 2021-22 | D14: 2022-23 | E14: 2023-24 | F14: 2024-25 | I14: 2020-21 | J14: 2021-22 | K14: 2022-23 | L14: 2023-24 | M14: 2024-25
A15: Non-capital | B15: =B69*Million/B40*(1-B34) -> 4.070856351 | C15: =B15*(1+C30)*(1-C34) -> 4.167335647 | D15: =C15*(1+D30)*(1-D34) -> 4.266101502 | E15: =D15*(1+E30)*(1-E34) -> 4.367208107 | F15: =E15*(1+F30)*(1-F34) -> 4.470710939 | H15: Non-capital | I15: =B15/DaysinYear*OneHundred -> 1.114539727 | J15: 1.140954318 | K15: 1.167994935 | L15: 1.195676415 | M15: 1.224013946
A16: Capital | B16: =B70*Million/B40*(1-B35) -> 7.617433158 | C16: =B16*(1+C30)*(1-C35) -> 7.797966324 | D16: =C16*(1+D30)*(1-D35) -> 7.982778126 | E16: =D16*(1+E30)*(1-E35) -> 8.171969967 | F16: =E16*(1+F30)*(1-F35) -> 8.365645656 | H16: Capital | I16: 2.085539537 | J16: 2.134966824 | K16: 2.185565538 | L16: 2.237363441 | M16: 2.290388954
A17: Total | B17: =B15+B16 -> 11.68828951 | C17: =C15+C16 -> 11.96530197 | D17: =D15+D16 -> 12.24887963 | E17: =E15+E16 -> 12.53917807 | F17: =F15+F16 -> 12.8363566 | H17: Total | I17: =I15+I16 -> 3.200079263 | J17: =J15+J16 -> 3.275921142 | K17: =K15+K16 -> 3.353560473 | L17: =L15+L16 -> 3.433039856 | M17: =M15+M16 -> 3.514402901
A19: Solar PV ($, nominal) | H19: Solar PV (cents per day, nominal)
B20: 2020-21 | C20: 2021-22 | D20: 2022-23 | E20: 2023-24 | F20: 2024-25 | I20: 2020-21 | J20: 2021-22 | K20: 2022-23 | L20: 2023-24 | M20: 2024-25
A21: Non-capital | B21: =B71*Million/B41*(1-B34) -> 9.49866482 | C21: =B21*(1+C30)*(1-C34) -> 9.723783176 | D21: =C21*(1+D30)*(1-D34) -> 9.954236837 | E21: =D21*(1+E30)*(1-E34) -> 10.19015225 | F21: =E21*(1+F30)*(1-F34) -> 10.43165886 | H21: Non-capital | I21: =B21/DaysinYear*OneHundred -> 2.600592695 | J21: 2.662226742 | K21: 2.725321516 | L21: 2.789911636 | M21: 2.856032542
A22: Capital | B22: =B72*Million/B41*(1-B35) -> 17.7740107 | C22: =B22*(1+C30)*(1-C35) -> 18.19525476 | D22: =C22*(1+D30)*(1-D35) -> 18.62648229 | E22: =D22*(1+E30)*(1-E35) -> 19.06792992 | F22: =E22*(1+F30)*(1-F35) -> 19.51983986 | H22: Capital | I22: 4.866258919 | J22: 4.981589256 | K22: 5.099652921 | L22: 5.220514695 | M22: 5.344240893
A23: Total | B23: =B21+B22 -> 27.27267552 | C23: =C21+C22 -> 27.91903793 | D23: =D21+D22 -> 28.58071913 | E23: =E21+E22 -> 29.25808217 | F23: =F21+F22 -> 29.95149872 | H23: Total | I23: =I21+I22 -> 7.466851614 | J23: =J21+J22 -> 7.643815998 | K23: =K21+K22 -> 7.824974437 | L23: =L21+L22 -> 8.010426331 | M23: =M21+M22 -> 8.200273435
A26: Calculations
A28: Inflation
A29: Year | B29: 2020-21 | C29: 2021-22 | D29: 2022-23 | E29: 2023-24 | F29: 2024-25
A30: Inflation Assumption (CPI % increase) (constant) | B30: ='Inputs and Assumptions'!E68 -> 0.0237 | C30: ='Inputs and Assumptions'!F68 -> 0.0237 | D30: ='Inputs and Assumptions'!G68 -> 0.0237 | E30: ='Inputs and Assumptions'!H68 -> 0.0237 | F30: ='Inputs and Assumptions'!I68 -> 0.0237
A32: X-Factor (used to determine annual metering charges)
A33: Year | B33: 2020-21 | C33: 2021-22 | D33: 2022-23 | E33: 2023-24 | F33: 2024-25
A34: X-Factor (non-capital) | B34: -0.04332544357 | C34: 0 | D34: 0 | E34: 0 | F34: 0
A35: X-Factor (capital) | B35: -0.09528166559 | C35: 0 | D35: 0 | E35: 0 | F35: 0
A37: Network Tariff Code (NTC) | H37: Customers by Tariff Code
A38: Year | B38: 2020-21 | C38: 2021-22 | D38: 2022-23 | E38: 2023-24 | F38: 2024-25 | H38: Year | I38: 2020-21 | J38: 2021-22 | K38: 2022-23 | L38: 2023-24 | M38: 2024-25
A39: Primary | B39: ='Inputs and Assumptions'!C21 -> 1307987.985 | C39: ='Inputs and Assumptions'!D21 -> 1256298.681 | D39: ='Inputs and Assumptions'!E21 -> 1206652.044 | E39: ='Inputs and Assumptions'!F21 -> 1158967.351 | F39: ='Inputs and Assumptions'!G21 -> 1113167.071 | H39: Primary (Non-capital) | I39: ='Inputs and Assumptions'!C33 -> 1251496.286 | J39: ='Inputs and Assumptions'!D33 -> 1202039.431 | K39: ='Inputs and Assumptions'!E33 -> 1154537.021 | L39: ='Inputs and Assumptions'!F33 -> 1108911.819 | M39: ='Inputs and Assumptions'!G33 -> 1065089.643
A40: Load Control | B40: ='Inputs and Assumptions'!C22 -> 651380.5214 | C40: ='Inputs and Assumptions'!D22 -> 625639.1489 | D40: ='Inputs and Assumptions'!E22 -> 600915.0286 | E40: ='Inputs and Assumptions'!F22 -> 577167.9605 | F40: ='Inputs and Assumptions'!G22 -> 554359.3334 | H40: Primary (Capital) | I40: ='Inputs and Assumptions'!C34 -> 1216023.772 | J40: ='Inputs and Assumptions'!D34 -> 1167968.726 | K40: ='Inputs and Assumptions'!E34 -> 1121812.728 | L40: ='Inputs and Assumptions'!F34 -> 1077480.731 | M40: ='Inputs and Assumptions'!G34 -> 1034900.654
A41: Solar PV | B41: ='Inputs and Assumptions'!C23 -> 305237.2806 | C41: ='Inputs and Assumptions'!D23 -> 293174.8589 | D41: ='Inputs and Assumptions'!E23 -> 281589.1221 | E41: ='Inputs and Assumptions'!F23 -> 270461.2326 | F41: ='Inputs and Assumptions'!G23 -> 259773.097 | H41: Load Control (Non-capital) | I41: ='Inputs and Assumptions'!C35 -> 629974.5811 | J41: ='Inputs and Assumptions'!D35 -> 605079.1324 | K41: ='Inputs and Assumptions'!E35 -> 581167.5065 | L41: ='Inputs and Assumptions'!F35 -> 558200.8246 | M41: ='Inputs and Assumptions'!G35 -> 536141.7441
A42: Total | B42: =SUM(B39:B41) -> 2264605.787 | C42: =SUM(C39:C41) -> 2175112.688 | D42: =SUM(D39:D41) -> 2089156.194 | E42: 2006596.545 | F42: 1927299.502 | H42: Load Control (Capital) | I42: ='Inputs and Assumptions'!C36 -> 628857.2673 | J42: ='Inputs and Assumptions'!D36 -> 604005.9728 | K42: ='Inputs and Assumptions'!E36 -> 580136.7563 | L42: ='Inputs and Assumptions'!F36 -> 557210.8077 | M42: ='Inputs and Assumptions'!G36 -> 535190.8509
H43: Solar PV (Non-capital) | I43: ='Inputs and Assumptions'!C37 -> 289168.9787 | J43: ='Inputs and Assumptions'!D37 -> 277741.5471 | K43: ='Inputs and Assumptions'!E37 -> 266765.7067 | L43: ='Inputs and Assumptions'!F37 -> 256223.6116 | M43: ='Inputs and Assumptions'!G37 -> 246098.1209
A44: Relationships | H44: Solar PV (Capital) | I44: ='Inputs and Assumptions'!C38 -> 274851.0312 | J44: ='Inputs and Assumptions'!D38 -> 263989.4188 | K44: ='Inputs and Assumptions'!E38 -> 253557.0375 | L44: ='Inputs and Assumptions'!F38 -> 243536.9249 | M44: ='Inputs and Assumptions'!G38 -> 233912.789
B45: Factor | C45: Notes:
A46: Primary | B46: 1 | C46: Weighted based on meter population
A47: Load Control | B47: 0.3 | C47: Cost of Single Phase single element meter only
A48: Solar PV | B48: 0.7 | C48: Based on 75% meter replacement vs meter reprogram
A50: Revenue Weights (%)
A51: Year | B51: 2020-21 | C51: 2021-22 | D51: 2022-23 | E51: 2023-24 | F51: 2024-25
A52: Primary | B52: =B39*$B$46/SUMPRODUCT(B$39:B$41,$B$46:$B$48) -> 0.7617565547 | C52: =C39*$B$46/SUMPRODUCT(C$39:C$41,$B$46:$B$48) -> 0.7617565547 | D52: 0.7617565547 | E52: 0.7617565547 | F52: 0.7617565547
A53: Load Control | B53: =B40*$B$47/SUMPRODUCT(B$39:B$41,$B$46:$B$48) -> 0.1138068669 | C53: =C40*$B$47/SUMPRODUCT(C$39:C$41,$B$46:$B$48) -> 0.1138068669 | D53: 0.1138068669 | E53: 0.1138068669 | F53: 0.1138068669
A54: Solar PV | B54: =B41*$B$48/SUMPRODUCT(B$39:B$41,$B$46:$B$48) -> 0.1244365784 | C54: =C41*$B$48/SUMPRODUCT(C$39:C$41,$B$46:$B$48) -> 0.1244365784 | D54: 0.1244365784 | E54: 0.1244365784 | F54: 0.1244365784
A56: Building Blocks ($m, nominal)
B57: 2020-21 | C57: 2021-22 | D57: 2022-23 | E57: 2023-24 | F57: 2024-25
A58: Return on Capital | B58: ='(EGX&EGN) Building Blocks'!B8 -> 14.84499177 | C58: ='(EGX&EGN) Building Blocks'!C8 -> 13.35797898 | D58: ='(EGX&EGN) Building Blocks'!D8 -> 11.89629322 | E58: ='(EGX&EGN) Building Blocks'!E8 -> 10.45065154 | F58: ='(EGX&EGN) Building Blocks'!F8 -> 9.016340591
A59: Return of Capital (regulatory depreciation) | B59: ='(EGX&EGN) Building Blocks'!B9 -> 23.45932622 | C59: ='(EGX&EGN) Building Blocks'!C9 -> 24.29823087 | D59: ='(EGX&EGN) Building Blocks'!D9 -> 25.4324534 | E59: ='(EGX&EGN) Building Blocks'!E9 -> 26.7895461 | F59: ='(EGX&EGN) Building Blocks'!F9 -> 28.19667984
A60: Operating Expenditure | B60: ='(EGX&EGN) Building Blocks'!B10 -> 22.33223962 | C60: ='(EGX&EGN) Building Blocks'!C10 -> 21.93664414 | D60: ='(EGX&EGN) Building Blocks'!D10 -> 21.55363879 | E60: ='(EGX&EGN) Building Blocks'!E10 -> 21.17998314 | F60: ='(EGX&EGN) Building Blocks'!F10 -> 20.78261762
A61: Revenue Adjustments | B61: ='(EGX&EGN) Building Blocks'!B11 -> 0 | C61: ='(EGX&EGN) Building Blocks'!C11 -> 0 | D61: ='(EGX&EGN) Building Blocks'!D11 -> 0 | E61: ='(EGX&EGN) Building Blocks'!E11 -> 0 | F61: ='(EGX&EGN) Building Blocks'!F11 -> 0
A62: Net Tax Allowance | B62: ='(EGX&EGN) Building Blocks'!B12 -> 1.501736594 | C62: ='(EGX&EGN) Building Blocks'!C12 -> 1.560183555 | D62: ='(EGX&EGN) Building Blocks'!D12 -> 1.658450075 | E62: ='(EGX&EGN) Building Blocks'!E12 -> 1.813921068 | F62: ='(EGX&EGN) Building Blocks'!F12 -> 2.025866697
A63: Annual Revenue Requirement (unsmoothed) | B63: ='(EGX&EGN) Building Blocks'!B13 -> 62.1382942 | C63: ='(EGX&EGN) Building Blocks'!C13 -> 61.15303755 | D63: ='(EGX&EGN) Building Blocks'!D13 -> 60.54083548 | E63: ='(EGX&EGN) Building Blocks'!E13 -> 60.23410184 | F63: ='(EGX&EGN) Building Blocks'!F13 -> 60.02150474
A65: Unsmoothed Revenue Allocation between Metering Type ($m, nominal)
B66: 2020-21 | C66: 2021-22 | D66: 2022-23 | E66: 2023-24 | F66: 2024-25
A67: Primary (Non-Capital) | B67: =B60*B52 -> 17.01172991 | C67: =C60*C52 -> 16.71038246 | D67: 16.41862563 | E67: 16.13399098 | F67: 15.83129519
A68: Primary (Capital) | B68: =(B58+B59+B62)*B52 -> 30.32252299 | C68: =(C58+C59+C62)*C52 -> 29.87334472 | D68: 29.69875263 | E68: 29.74973091 | F68: 29.89047947
A69: Load Control (Non-Capital) | B69: =B60*B53 -> 2.541562222 | C69: =C60*C53 -> 2.496540741 | D69: 2.452952102 | E69: 2.410427522 | F69: 2.365204597
A70: Load Control (Capital) | B70: =(B58+B59+B62)*B53 -> 4.530202356 | C70: =(C58+C59+C62)*C53 -> 4.463094865 | D70: 4.437010705 | E70: 4.44462689 | F70: 4.465654805
A71: Solar PV (Non-Capital) | B71: =B60*B54 -> 2.778947486 | C71: =C60*C54 -> 2.729720939 | D71: 2.682061064 | E71: 2.635564633 | F71: 2.586117827
A72: Solar PV (Capital) | B72: =(B58+B59+B62)*B54 -> 4.953329232 | C72: =(C58+C59+C62)*C54 -> 4.879953813 | D72: 4.851433358 | E72: 4.859760904 | F72: 4.882752855
A73: Annual Revenue Requirement (unsmoothed) | B73: =SUM(B67:B72) -> 62.1382942 | C73: =SUM(C67:C72) -> 61.15303755 | D73: 60.54083548 | E73: 60.23410184 | F73: 60.02150474
A75: Unsmoothed Revenue Allocation ($m, nominal)
B76: 2020-21 | C76: 2021-22 | D76: 2022-23 | E76: 2023-24 | F76: 2024-25 | H76: NPV
A77: Non-Capital Revenue (unsmoothed) | B77: =B60 -> 22.33223962 | C77: =C60 -> 21.93664414 | D77: 21.55363879 | E77: 21.17998314 | F77: 20.78261762 | H77: =SUMPRODUCT($B77:$F77,$B$86:$F$86) -> 94.77675043
A78: Capital Revenue (unsmoothed) | B78: =B58+B59+B62 -> 39.80605458 | C78: =C58+C59+C62 -> 39.2163934 | D78: 38.98719669 | E78: 39.0541187 | F78: 39.23888713 | H78: =SUMPRODUCT($B78:$F78,$B$86:$F$86) -> 172.4000905
A79: Annual Revenue Requirement (unsmoothed) | B79: =B77+B78 -> 62.1382942 | C79: =C77+C78 -> 61.15303755 | D79: 60.54083548 | E79: 60.23410184 | F79: 60.02150474 | H79: =SUMPRODUCT($B79:$F79,$B$86:$F$86) -> 267.1768409
A81: Calculated Revenue Allocation ($m, nominal)
B82: 2020-21 | C82: 2021-22 | D82: 2022-23 | E82: 2023-24 | F82: 2024-25 | H82: NPV
A83: Non-Capital Revenue (smoothed) | B83: =(B9*I39+B15*I41+B21*I43)/1000000 -> 22.29346058 | C83: =(C9*J39+C15*J41+C21*J43)/1000000 -> 21.91993899 | D83: 21.55267566 | E83: 21.19156574 | F83: 20.83650613 | H83: =SUMPRODUCT($B83:$F83,$B$86:$F$86) -> 94.77675043
A84: Capital Revenue (smoothed) | B84: =(B10*I40+B16*I42+B22*I44)/1000000 -> 40.5520827 | C84: =(C10*J40+C16*J42+C22*J44)/1000000 -> 39.87264226 | D84: 39.20458569 | E84: 38.54772225 | F84: 37.90186439 | H84: =SUMPRODUCT($B84:$F84,$B$86:$F$86) -> 172.4000905
A85: Annual Revenue Requirement (smoothed) | B85: =B83+B84 -> 62.84554328 | C85: =C83+C84 -> 61.79258125 | D85: =D83+D84 -> 60.75726135 | E85: =E83+E84 -> 59.73928798 | F85: =F83+F84 -> 58.73837052 | H85: 267.1768409
A86: WACC | B86: =1/PRODUCT($B87:B87) -> 0.9553523829 | C86: =1/PRODUCT($B87:C87) -> 0.9138575301 | D86: =1/PRODUCT($B87:D87) -> 0.8752767881 | E86: =1/PRODUCT($B87:E87) -> 0.8393924211 | F86: =1/PRODUCT($B87:F87) -> 0.8060056681
A87: WACC | B87: =1+'Inputs and Assumptions'!E74 -> 1.046734187 | C87: =1+'Inputs and Assumptions'!F74 -> 1.04540626 | D87: =1+'Inputs and Assumptions'!G74 -> 1.044078333 | E87: =1+'Inputs and Assumptions'!H74 -> 1.042750406 | F87: =1+'Inputs and Assumptions'!I74 -> 1.041422479
F88: Difference in Final Year Revenue | H88: NPV Difference
F89: =F85/F79-1 -> -0.0213779083 | H89: =H77-H83 -> 0
H90: =H78-H84 -> 0
A93: Notes
A94: - Values in green cells were sourced from the AER's preliminary decision Energex - Metering Pricing Model - April 2015.xlsx
A98: Return to top

Sheet Ergon Smoothed Charges
A1: Ergon Smoothed Charges
F3: =IF(ROUND((Ergon_Non_Capital_NPV_Difference+Ergon_Capital_NPV_Difference),5)<>ROUND(0, 5),"Charges not smoothed. Press button to smooth charges.", "Smoothing complete.") -> Smoothing complete.
A5: Smoothed Charges
A7: Primary ($, nominal) | H7: Primary (cents per day, nominal)
B8: 2020-21 | C8: 2021-22 | D8: 2022-23 | E8: 2023-24 | F8: 2024-25 | I8: 2020-21 | J8: 2021-22 | K8: 2022-23 | L8: 2023-24 | M8: 2024-25
A9: Non-capital | B9: =B67*Million/B39*(1-B34) -> 54.50237799 | C9: =B9*(1+C30)*(1-C34) -> 55.79408435 | D9: =C9*(1+D30)*(1-D34) -> 57.11640415 | E9: =D9*(1+E30)*(1-E34) -> 58.47006293 | F9: =E9*(1+F30)*(1-F34) -> 59.85580342 | H9: Non-capital | I9: =B9/DaysinYear*OneHundred -> 14.92193785 | J9: 15.27558778 | K9: 15.63761921 | L9: 16.00823078 | M9: 16.38762585
A10: Capital | B10: =B68*Million/B39*(1-B35) -> 15.83417311 | C10: =B10*(1+C30)*(1-C35) -> 16.20944301 | D10: =C10*(1+D30)*(1-D35) -> 16.59360681 | E10: =D10*(1+E30)*(1-E35) -> 16.98687529 | F10: =E10*(1+F30)*(1-F35) -> 17.38946424 | H10: Capital | I10: 4.335160331 | J10: 4.437903631 | K10: 4.543081947 | L10: 4.650752989 | M10: 4.760975835
A11: Total | B11: =B9+B10 -> 70.3365511 | C11: =C9+C10 -> 72.00352736 | D11: 73.71001096 | E11: 75.45693822 | F11: 77.24526766 | H11: Total | I11: =I9+I10 -> 19.25709818 | J11: =J9+J10 -> 19.71349141 | K11: 20.18070115 | L11: 20.65898377 | M11: 21.14860169
A13: Load Control ($, nominal) | H13: Load Control (cents per day, nominal)
B14: 2020-21 | C14: 2021-22 | D14: 2022-23 | E14: 2023-24 | F14: 2024-25 | I14: 2020-21 | J14: 2021-22 | K14: 2022-23 | L14: 2023-24 | M14: 2024-25
A15: Non-capital | B15: =B69*Million/B40*(1-B34) -> 20.03931767 | C15: =B15*(1+C30)*(1-C34) -> 20.5142495 | D15: =C15*(1+D30)*(1-D34) -> 21.00043721 | E15: =D15*(1+E30)*(1-E34) -> 21.49814757 | F15: =E15*(1+F30)*(1-F34) -> 22.00765367 | H15: Non-capital | I15: =B15/DaysinYear*OneHundred -> 5.486466165 | J15: 5.616495413 | K15: 5.749606354 | L15: 5.885872025 | M15: 6.025367192
A16: Capital | B16: =B70*Million/B40*(1-B35) -> 5.821874873 | C16: =B16*(1+C30)*(1-C35) -> 5.959853307 | D16: =C16*(1+D30)*(1-D35) -> 6.101101831 | E16: =D16*(1+E30)*(1-E35) -> 6.245697944 | F16: =E16*(1+F30)*(1-F35) -> 6.393720985 | H16: Capital | I16: 1.59394247 | J16: 1.631718907 | K16: 1.670390645 | L16: 1.709978903 | M16: 1.750505403
A17: Total | B17: =B15+B16 -> 25.86119254 | C17: =C15+C16 -> 26.4741028 | D17: 27.10153904 | E17: 27.74384551 | F17: 28.40137465 | H17: Total | I17: =I15+I16 -> 7.080408635 | J17: =J15+J16 -> 7.24821432 | K17: 7.419996999 | L17: 7.595850928 | M17: 7.775872595
A19: Solar PV ($, nominal) | H19: Solar PV (cents per day, nominal)
B20: 2020-21 | C20: 2021-22 | D20: 2022-23 | E20: 2023-24 | F20: 2024-25 | I20: 2020-21 | J20: 2021-22 | K20: 2022-23 | L20: 2023-24 | M20: 2024-25
A21: Non-capital | B21: =B71*Million/B41*(1-B34) -> 13.55300984 | C21: =B21*(1+C30)*(1-C34) -> 13.87421617 | D21: =C21*(1+D30)*(1-D34) -> 14.2030351 | E21: =D21*(1+E30)*(1-E34) -> 14.53964703 | F21: =E21*(1+F30)*(1-F34) -> 14.88423666 | H21: Non-capital | I21: =B21/DaysinYear*OneHundred -> 3.710611866 | J21: 3.798553367 | K21: 3.888579082 | L21: 3.980738406 | M21: 4.075081906
A22: Capital | B22: =B72*Million/B41*(1-B35) -> 3.937455793 | C22: =B22*(1+C30)*(1-C35) -> 4.030773496 | D22: =C22*(1+D30)*(1-D35) -> 4.126302828 | E22: =D22*(1+E30)*(1-E35) -> 4.224096205 | F22: =E22*(1+F30)*(1-F35) -> 4.324207285 | H22: Capital | I22: 1.078016644 | J22: 1.103565639 | K22: 1.129720144 | L22: 1.156494512 | M22: 1.183903432
A23: Total | B23: =B21+B22 -> 17.49046563 | C23: =C21+C22 -> 17.90498967 | D23: 18.32933792 | E23: 18.76374323 | F23: 19.20844395 | H23: Total | I23: =I21+I22 -> 4.78862851 | J23: =J21+J22 -> 4.902119006 | K23: 5.018299226 | L23: 5.137232918 | M23: 5.258985338
A26: Calculations
A28: Inflation
A29: Year | B29: 2020-21 | C29: 2021-22 | D29: 2022-23 | E29: 2023-24 | F29: 2024-25
A30: Inflation Assumption (CPI % increase) (constant) | B30: ='Inputs and Assumptions'!E68 -> 0.0237 | C30: ='Inputs and Assumptions'!F68 -> 0.0237 | D30: ='Inputs and Assumptions'!G68 -> 0.0237 | E30: ='Inputs and Assumptions'!H68 -> 0.0237 | F30: ='Inputs and Assumptions'!I68 -> 0.0237
A32: X-Factor (used to determine annual metering charges)
A33: Year | B33: 2020-21 | C33: 2021-22 | D33: 2022-23 | E33: 2023-24 | F33: 2024-25
A34: X-Factor (non-capital) | B34: -0.06881499833 | C34: 0 | D34: 0 | E34: 0 | F34: 0
A35: X-Factor (capital) | B35: -0.5650881235 | C35: 0 | D35: 0 | E35: 0 | F35: 0
A37: Network Tariff Code (NTC) | H37: Customers by Tariff Code
A38: Year | B38: 2020-21 | C38: 2021-22 | D38: 2022-23 | E38: 2023-24 | F38: 2024-25 | H38: Year | I38: 2020-21 | J38: 2021-22 | K38: 2022-23 | L38: 2023-24 | M38: 2024-25
A39: Primary | B39: ='Inputs and Assumptions'!C25 -> 624012.7005 | C39: ='Inputs and Assumptions'!D25 -> 574945.0002 | D39: ='Inputs and Assumptions'!E25 -> 529735.6176 | E39: ='Inputs and Assumptions'!F25 -> 488081.1632 | F39: ='Inputs and Assumptions'!G25 -> 449702.1043 | H39: Primary (Non-capital) | I39: ='Inputs and Assumptions'!C40 -> 601307.4421 | J39: ='Inputs and Assumptions'!D40 -> 554025.1138 | K39: ='Inputs and Assumptions'!E40 -> 510460.7148 | L39: ='Inputs and Assumptions'!F40 -> 470321.895 | M39: ='Inputs and Assumptions'!G40 -> 433339.2923
A40: Load Control | B40: ='Inputs and Assumptions'!C26 -> 343891.1928 | C40: ='Inputs and Assumptions'!D26 -> 316850.1566 | D40: ='Inputs and Assumptions'!E26 -> 291935.4257 | E40: ='Inputs and Assumptions'!F26 -> 268979.8032 | F40: ='Inputs and Assumptions'!G26 -> 247829.2395 | H40: Primary (Capital) | I40: ='Inputs and Assumptions'!C41 -> 444714.5918 | J40: ='Inputs and Assumptions'!D41 -> 409745.5562 | K40: ='Inputs and Assumptions'!E41 -> 377526.2246 | L40: ='Inputs and Assumptions'!F41 -> 347840.3806 | M40: ='Inputs and Assumptions'!G41 -> 320488.8098
A41: Solar PV | B41: ='Inputs and Assumptions'!C27 -> 108022.9644 | C41: ='Inputs and Assumptions'!D27 -> 99528.84488 | D41: ='Inputs and Assumptions'!E27 -> 91702.63954 | E41: ='Inputs and Assumptions'!F27 -> 84491.82855 | F41: ='Inputs and Assumptions'!G27 -> 77848.02192 | H41: Load Control (Non-capital) | I41: ='Inputs and Assumptions'!C42 -> 332411.8755 | J41: ='Inputs and Assumptions'!D42 -> 306273.4872 | K41: ='Inputs and Assumptions'!E42 -> 282190.4266 | L41: ='Inputs and Assumptions'!F42 -> 260001.0781 | M41: ='Inputs and Assumptions'!G42 -> 239556.5343
A42: Total | B42: =SUM(B39:B41) -> 1075926.858 | C42: =SUM(C39:C41) -> 991324.0017 | D42: 913373.6828 | E42: 841552.795 | F42: 775379.3657 | H42: Load Control (Capital) | I42: ='Inputs and Assumptions'!C43 -> 248048.7063 | J42: ='Inputs and Assumptions'!D43 -> 228544.0078 | K42: ='Inputs and Assumptions'!E43 -> 210573.0132 | L42: ='Inputs and Assumptions'!F43 -> 194015.1234 | M42: ='Inputs and Assumptions'!G43 -> 178759.2225
H43: Solar PV (Non-capital) | I43: ='Inputs and Assumptions'!C44 -> 105818.132 | J43: ='Inputs and Assumptions'!D44 -> 97497.38409 | K43: ='Inputs and Assumptions'!E44 -> 89830.91766 | L43: ='Inputs and Assumptions'!F44 -> 82767.28491 | M43: ='Inputs and Assumptions'!G44 -> 76259.08351
A44: Relationships | H44: Solar PV (Capital) | I44: ='Inputs and Assumptions'!C45 -> 69964.95985 | J44: ='Inputs and Assumptions'!D45 -> 64463.43772 | K44: ='Inputs and Assumptions'!E45 -> 59394.51422 | L44: ='Inputs and Assumptions'!F45 -> 54724.17302 | M44: ='Inputs and Assumptions'!G45 -> 50421.07259
B45: Factor
A46: Primary | B46: 1
A47: Load Control | B47: 0.3676778593
A48: Solar PV | B48: 0.2486682295
A50: Revenue Weights (%)
A51: Year | B51: 2020-21 | C51: 2021-22 | D51: 2022-23 | E51: 2023-24 | F51: 2024-25
A52: Primary | B52: =B39*$B$46/SUMPRODUCT(B$39:B$41,$B$46:$B$48) -> 0.8027789152 | C52: =C39*$B$46/SUMPRODUCT(C$39:C$41,$B$46:$B$48) -> 0.8027789152 | D52: 0.8027789152 | E52: 0.8027789152 | F52: 0.8027789152
A53: Load Control | B53: =B40*$B$47/SUMPRODUCT(B$39:B$41,$B$46:$B$48) -> 0.1626638549 | C53: =C40*$B$47/SUMPRODUCT(C$39:C$41,$B$46:$B$48) -> 0.1626638549 | D53: 0.1626638549 | E53: 0.1626638549 | F53: 0.1626638549
A54: Solar PV | B54: =B41*$B$48/SUMPRODUCT(B$39:B$41,$B$46:$B$48) -> 0.03455722986 | C54: =C41*$B$48/SUMPRODUCT(C$39:C$41,$B$46:$B$48) -> 0.03455722986 | D54: 0.03455722986 | E54: 0.03455722986 | F54: 0.03455722986
A56: Building Blocks ($m, nominal)
B57: 2020-21 | C57: 2021-22 | D57: 2022-23 | E57: 2023-24 | F57: 2024-25
A58: Return on Capital | B58: ='(EGX&EGN) Building Blocks'!K8 -> 3.233768682 | C58: ='(EGX&EGN) Building Blocks'!L8 -> 2.940551195 | D58: ='(EGX&EGN) Building Blocks'!M8 -> 2.647779301 | E58: ='(EGX&EGN) Building Blocks'!N8 -> 2.355945256 | F58: ='(EGX&EGN) Building Blocks'!O8 -> 2.065744098
A59: Return of Capital (regulatory depreciation) | B59: ='(EGX&EGN) Building Blocks'!K9 -> 4.523101736 | C59: ='(EGX&EGN) Building Blocks'!L9 -> 4.777644778 | D59: ='(EGX&EGN) Building Blocks'!M9 -> 5.04433775 | E59: ='(EGX&EGN) Building Blocks'!N9 -> 5.320912329 | F59: ='(EGX&EGN) Building Blocks'!O9 -> 5.60771861
A60: Operating Expenditure | B60: ='(EGX&EGN) Building Blocks'!K10 -> 39.6378768 | C60: ='(EGX&EGN) Building Blocks'!L10 -> 37.971452 | D60: ='(EGX&EGN) Building Blocks'!M10 -> 36.42956424 | E60: ='(EGX&EGN) Building Blocks'!N10 -> 35.00087876 | F60: ='(EGX&EGN) Building Blocks'!O10 -> 33.64021059
A61: Revenue Adjustments | B61: ='(EGX&EGN) Building Blocks'!K11 -> 0 | C61: ='(EGX&EGN) Building Blocks'!L11 -> 0 | D61: ='(EGX&EGN) Building Blocks'!M11 -> 0 | E61: ='(EGX&EGN) Building Blocks'!N11 -> 0 | F61: ='(EGX&EGN) Building Blocks'!O11 -> 0
A62: Net Tax Allowance | B62: ='(EGX&EGN) Building Blocks'!K12 -> 0.1073207918 | C62: ='(EGX&EGN) Building Blocks'!L12 -> 0.130825929 | D62: ='(EGX&EGN) Building Blocks'!M12 -> 0.1558375328 | E62: ='(EGX&EGN) Building Blocks'!N12 -> 0.1815931298 | F62: ='(EGX&EGN) Building Blocks'!O12 -> 0.2080455735
A63: Annual Revenue Requirement (unsmoothed) | B63: ='(EGX&EGN) Building Blocks'!K13 -> 47.50206801 | C63: ='(EGX&EGN) Building Blocks'!L13 -> 45.82047391 | D63: ='(EGX&EGN) Building Blocks'!M13 -> 44.27751883 | E63: ='(EGX&EGN) Building Blocks'!N13 -> 42.85932947 | F63: ='(EGX&EGN) Building Blocks'!O13 -> 41.52171887
A65: Unsmoothed Revenue Allocation between Metering Type ($m, nominal)
B66: 2020-21 | C66: 2021-22 | D66: 2022-23 | E66: 2023-24 | F66: 2024-25
A67: Primary (Non-Capital) | B67: =B60*B52 -> 31.82045174 | C67: =C60*C52 -> 30.48268105 | D67: 29.24488607 | E67: 28.09796748 | F67: 27.00565176
A68: Primary (Capital) | B68: =(B58+B59+B62)*B52 -> 6.313206889 | C68: =(C58+C59+C62)*C52 -> 6.301029288 | D68: 6.300172467 | E68: 6.30859854 | F68: 6.327108669
A69: Load Control (Non-Capital) | B69: =B60*B53 -> 6.447649842 | C69: =C60*C53 -> 6.17658276 | D69: 5.925773353 | E69: 5.693377864 | F69: 5.472046334
A70: Load Control (Capital) | B70: =(B58+B59+B62)*B53 -> 1.279219658 | C70: =(C58+C59+C62)*C53 -> 1.27675216 | D70: 1.276578546 | E70: 1.278285887 | F70: 1.28203652
A71: Solar PV (Non-Capital) | B71: =B60*B54 -> 1.36977522 | C71: =C60*C54 -> 1.312188195 | D71: 1.258904825 | E71: 1.209533412 | F71: 1.16251249
A72: Solar PV (Capital) | B72: =(B58+B59+B62)*B54 -> 0.2717646633 | C72: =(C58+C59+C62)*C54 -> 0.271240454 | D72: 0.2712035704 | E72: 0.2715662877 | F72: 0.2723630933
A73: Annual Revenue Requirement (unsmoothed) | B73: =SUM(B67:B72) -> 47.50206801 | C73: =SUM(C67:C72) -> 45.82047391 | D73: 44.27751883 | E73: 42.85932947 | F73: 41.52171887
A75: Unsmoothed Revenue Allocation ($m, nominal)
B76: 2020-21 | C76: 2021-22 | D76: 2022-23 | E76: 2023-24 | F76: 2024-25 | H76: NPV
A77: Non-Capital Revenue (unsmoothed) | B77: =B60 -> 39.6378768 | C77: =C60 -> 37.971452 | D77: 36.42956424 | E77: 35.00087876 | F77: 33.64021059 | H77: =SUMPRODUCT($B77:$F77,$B$86:$F$86) -> 160.9482622
A78: Capital Revenue (unsmoothed) | B78: =B58+B59+B62 -> 7.86419121 | C78: =C58+C59+C62 -> 7.849021902 | D78: 7.847954583 | E78: 7.858450715 | F78: 7.881508281 | H78: =SUMPRODUCT($B78:$F78,$B$86:$F$86) -> 34.50395838
A79: Annual Revenue Requirement (unsmoothed) | B79: =B77+B78 -> 47.50206801 | C79: =C77+C78 -> 45.82047391 | D79: 44.27751883 | E79: 42.85932947 | F79: 41.52171887 | H79: =SUMPRODUCT($B79:$F79,$B$86:$F$86) -> 195.4522205
A81: Calculated Revenue Allocation ($m, nominal)
B82: 2020-21 | C82: 2021-22 | D82: 2022-23 | E82: 2023-24 | F82: 2024-25 | H82: NPV
A83: Non-Capital Revenue (smoothed) | B83: =(B9*I39+B15*I41+B21*I43)/1000000 -> 40.86814685 | C83: =(C9*J39+C15*J41+C21*J43)/1000000 -> 38.54699444 | D83: 36.3576745 | E83: 34.29269945 | F83: 32.34500698 | H83: =SUMPRODUCT($B83:$F83,$B$86:$F$86) -> 160.9482622
A84: Capital Revenue (smoothed) | B84: =(B10*I40+B16*I42+B22*I44)/1000000 -> 8.761280297 | C84: =(C10*J40+C16*J42+C22*J44)/1000000 -> 8.26367352 | D84: 7.79432888 | E84: 7.351641197 | F84: 6.934096459 | H84: =SUMPRODUCT($B84:$F84,$B$86:$F$86) -> 34.50395838
A85: Annual Revenue Requirement (smoothed) | B85: =B83+B84 -> 49.62942715 | C85: =C83+C84 -> 46.81066796 | D85: =D83+D84 -> 44.15200338 | E85: =E83+E84 -> 41.64434065 | F85: =F83+F84 -> 39.27910344 | H85: =SUMPRODUCT($B85:$F85,$B$86:$F$86) -> 195.4522205
A86: WACC | B86: =1/PRODUCT($B87:B87) -> 0.9553523829 | C86: =1/PRODUCT($B87:C87) -> 0.9138575301 | D86: =1/PRODUCT($B87:D87) -> 0.8752767881 | E86: =1/PRODUCT($B87:E87) -> 0.8393924211 | F86: =1/PRODUCT($B87:F87) -> 0.8060056681
A87: WACC | B87: =1+'Inputs and Assumptions'!E74 -> 1.046734187 | C87: =1+'Inputs and Assumptions'!F74 -> 1.04540626 | D87: =1+'Inputs and Assumptions'!G74 -> 1.044078333 | E87: =1+'Inputs and Assumptions'!H74 -> 1.042750406 | F87: =1+'Inputs and Assumptions'!I74 -> 1.041422479
F88: Difference in Final Year Revenue | H88: NPV Difference
F89: =F85/F79-1 -> -0.05401065975 | H89: =H77-H83 -> 0
H90: =H78-H84 -> 0
A93: Notes
A94: - Values in green cells were sourced from the AER's preliminary decision Ergon Energy - Metering Pricing Model - April 2015.xlsx
A98: Return to top
